bitfinex/quotes_ETHUSD_20220113
["timestamp","ask_amount","ask_price","bid_price","bid_amount"]
[1642067775478,0.93318948,3362.5,3362.4,4.09751386]
[1642067775977,0.93318948,3362.5,3362.4,3.71852202]
[1642067776378,0.93318948,3362.5,3362.4,3.5977444]
[1642067776778,0.93318948,3362.5,3362.4,3.21875257]
[1642067777480,0.93318948,3362.5,3362.4,3.09797495]
[1642067777878,0.93318948,3362.5,3362.4,2.71898312]
[1642067778578,0.93318948,3362.5,3362.4,2.5982055]
[1642067779030,0.93318948,3362.5,3362.4,2.22461067]
[1642067779224,0.93318948,3362.5,3362.4,3.71154067]
[1642067779626,0.93318948,3362.5,3362.4,3.21177122]
[1642067779827,1.93318948,3362.5,3362.4,2.22461067]
[1642067780231,5.43318948,3362.5,3362.4,1.72475943]
[1642067780429,5.55208948,3362.5,3362.4,1.72475943]
[1642067780830,5.55208948,3362.5,3362.4,1.2248487]
[1642067781030,2.05208948,3362.5,3362.4,1.2248487]
[1642067781230,7.71363354,3362.5,3362.4,1.2248487]
[1642067781426,3.45,3362.4,3362.1,1.48703]
[1642067781628,2.47451963,3362.3,3362.1,1.48703]
[1642067781829,0.1189,3362.2,3362.1,1.48703]
[1642067782029,0.12060527,3362.2,3362.1,1.48703]
[1642067782679,0.12060527,3362.2,3362.1,0.98711927]
[1642067783075,2.5815979,3362.2,3362.1,0.98711927]
[1642067783277,3.5815979,3362.2,3362.1,0.48720854]
[1642067783478,2.5815979,3362.2,3362.1,0.48720854]
[1642067783676,3.5815979,3362.2,3362.1,0.22802863]
[1642067783976,2.05038421,3362.2,3362.1,0.22802863]
[1642067784176,0.01266996,3362.1,3361.8,2.2311]
[1642067784378,1.01266996,3362.1,3361.8,2.2311]
[1642067784576,0.01380681,3362.1,3361.8,2.2311]
[1642067784777,1.00113685,3362.1,3361.8,2.2311]
[1642067785178,0.00113685,3362.1,3361.8,2.2311]
[1642067785379,1.00113685,3362.1,3361.8,2.2311]
[1642067785582,0.92977894,3362.0,3361.8,2.2311]
[1642067786082,0.92977894,3362.0,3361.8,1.73137986]
[1642067786334,0.92977894,3361.9,3361.8,1.73137986]
[1642067786731,0.92977894,3361.9,3361.8,1.5823193]
[1642067787831,0.92977894,3361.9,3361.8,1.0824755]
[1642067788435,0.92977894,3361.9,3361.8,0.78018902]
[1642067788834,0.92977894,3361.9,3361.8,0.5826317]
[1642067789438,0.92977894,3361.9,3361.8,0.28034522]
[1642067790131,0.92977894,3361.9,3361.8,0.24374951]
[1642067790323,0.92977894,3361.9,3361.8,1.73115951]
[1642067790522,0.92977894,3361.9,3361.8,1.57019791]
[1642067790922,0.92977894,3361.9,3361.8,1.26791142]
[1642067791328,0.92977894,3361.9,3361.8,4.26791142]
[1642067791626,0.92977894,3361.9,3361.8,4.07035411]
[1642067792023,0.92977894,3361.9,3361.8,3.76806762]
[1642067792224,0.92977894,3361.9,3361.8,0.76806762]
[1642067793123,0.92977894,3361.9,3361.8,0.57051031]
[1642067793737,0.92977894,3361.9,3361.8,0.26822382]
[1642067793926,0.92977894,3361.9,3361.8,0.07066651]
[1642067794527,0.23161998,3361.8,3361.7,0.74366]
[1642067794925,0.23161998,3361.8,3361.7,0.00113684]
[1642067795123,0.92977894,3361.9,3361.7,0.00113684]
[1642067795523,0.92977894,3361.8,3361.7,0.00113684]
[1642067797478,1.42976743,3361.8,3361.7,0.00113684]
[1642067799881,1.17382198,3361.8,3361.7,0.00113684]
[1642067801742,1.17382198,3361.8,3361.6,1.28460876]
[1642067802140,2.69160299,3361.8,3361.6,1.28460876]
[1642067802541,1.0,3361.7,3361.6,1.28460876]
[1642067802939,1.0,3361.7,3361.6,1.58460876]
[1642067803141,2.0177695,3361.8,3361.6,1.58460876]
[1642067805680,0.49998849,3361.8,3361.6,1.58460876]
[1642067806080,1.53217524,3362.1,3361.7,0.1189]
[1642067806484,0.50169376,3362.0,3361.7,0.1189]
[1642067806884,0.00113684,3361.9,3361.7,0.1189]
[1642067807081,1.38206254,3361.9,3361.8,1.0436]
[1642067808081,1.38206254,3361.9,3361.8,1.7872]
[1642067809032,0.00113684,3361.9,3361.8,1.7872]
[1642067809832,0.00113684,3361.9,3361.8,1.9061]
[1642067812881,0.00113684,3361.9,3361.8,2.4178995]
[1642067813482,0.00113684,3361.9,3361.8,2.2989995]
[1642067813883,0.00113684,3361.9,3361.8,1.9989995]
[1642067814083,0.12003684,3361.9,3361.8,1.9989995]
[1642067814282,0.12003684,3361.9,3361.8,1.4872]
[1642067814686,0.12003684,3361.9,3361.8,0.98721151]
[1642067815084,0.12003684,3361.9,3361.8,0.48733796]
[1642067815685,0.12003684,3361.9,3361.8,0.24364961]
[1642067816331,0.01253558,3361.8,3361.7,0.1189]
[1642067816531,0.13143558,3361.8,3361.7,0.1189]
[1642067816730,0.1189,3361.8,3361.7,0.1189]
[1642067818034,0.38101229,3361.7,3361.6,1.58460876]
[1642067818532,0.1189,3361.8,3361.6,1.58460876]
[1642067819837,0.1189,3361.8,3361.6,1.08487651]
[1642067820493,1.00113684,3361.9,3361.6,1.08487651]
[1642067820494,0.78245757,3361.7,3361.6,1.08487651]
[1642067820891,5.0122,3362.7,3361.6,3.6497772]
[1642067821089,4.8933,3362.7,3361.8,1.48695]
[1642067821291,0.00170527,3362.2,3361.8,1.48695]
[1642067821488,0.00170527,3362.2,3361.9,0.3]
[1642067821690,6.17051302,3362.6,3362.0,2.24128567]
[1642067821691,0.00113685,3362.1,3362.0,2.24128567]
[1642067821890,0.00113685,3362.1,3362.0,0.426]
[1642067822090,5.97092053,3362.6,3362.3,1.42439084]
[1642067822393,1.169,3362.7,3362.3,3.21127084]
[1642067822394,0.00227369,3362.5,3362.3,3.21127084]
[1642067822792,0.00170527,3362.4,3362.3,3.21127084]
[1642067823761,0.00170527,3362.4,3362.3,1.78688]
[1642067824550,0.00170527,3362.4,3362.3,2.08688]
[1642067825852,0.00170527,3362.4,3362.3,2.20578]
[1642067827492,0.00170527,3362.4,3362.3,4.46028241]
[1642067827893,2.29862263,3363.1,3362.3,4.46028241]
[1642067828188,2.29862263,3363.1,3362.7,0.74323]
[1642067828189,0.00284212,3362.9,3362.7,0.74323]
[1642067828388,0.00284212,3362.9,3362.8,0.1189]
[1642067828590,2.29862263,3363.1,3362.8,1.28816]
[1642067828789,2.29862263,3363.1,3362.9,0.3]
[1642067828990,0.00341054,3363.0,3362.9,0.3]
[1642067829289,0.00341054,3363.0,3362.9,0.726]
[1642067829493,0.00341054,3363.0,3362.9,1.026]
[1642067830099,0.00341054,3363.0,3362.9,2.86003172]
[1642067830292,0.00341054,3363.0,3362.9,2.97893172]
[1642067830495,3.06154406,3363.8,3363.1,1.4862]
[1642067830693,3.06154406,3363.8,3363.4,0.7431]
[1642067830894,4.49805966,3363.8,3363.5,1.16917]
[1642067831093,0.1189,3363.7,3363.5,1.16917]
[1642067831335,0.1189,3363.7,3363.6,0.3]
[1642067832534,1.93624046,3363.8,3363.6,0.3]
[1642067832930,1.93624046,3363.8,3363.6,1.04316]
[1642067833131,1.93624046,3363.8,3363.6,3.84316]
[1642067834984,0.49972486,3363.8,3363.6,3.84316]
[1642067835585,0.1207021,3363.9,3363.6,3.84316]
[1642067835888,0.1207021,3363.9,3363.6,5.44825]
[1642067835889,0.00454739,3363.8,3363.6,5.44825]
[1642067836085,0.00454739,3363.8,3363.6,5.32935]
[1642067836287,0.00397896,3363.7,3363.6,4.58619]
[1642067837286,0.00397896,3363.7,3363.6,6.58619]
[1642067837485,0.00397896,3363.7,3363.6,5.01219]
[1642067837885,0.00397896,3363.7,3363.6,5.13109]
[1642067838088,0.00397896,3363.7,3363.6,5.43109]
[1642067843285,0.47541616,3363.7,3363.6,5.43109]
[1642067843683,0.47541616,3363.7,3363.6,5.31219]
[1642067844085,0.00397896,3363.7,3363.6,5.31219]
[1642067846837,0.0018021,3363.9,3363.6,5.31219]
[1642067847037,0.0018021,3363.9,3363.8,0.3]
[1642067847237,0.0018021,3363.9,3363.8,2.543757]
[1642067847437,0.00113685,3363.9,3363.8,2.543757]
[1642067847636,0.00113685,3363.9,3363.8,2.843757]
[1642067847937,1.0063701,3364.0,3363.8,2.843757]
[1642067848138,1.0063701,3364.0,3363.8,1.76901]
[1642067849144,1.0063701,3364.0,3363.9,1.81686133]
[1642067849342,1.0063701,3364.0,3363.9,1.93576133]
[1642067849543,2.75183405,3364.6,3363.9,1.93576133]
[1642067849744,0.1207021,3364.7,3364.0,0.74298]
[1642067849988,0.00284212,3364.4,3364.2,0.74686705]
[1642067850186,0.00284212,3364.4,3364.2,0.73549279]
[1642067850389,0.0018021,3364.7,3364.3,0.426]
[1642067850590,0.0018021,3364.7,3364.3,1.46886]
[1642067850792,0.0018021,3364.7,3364.4,3.56962328]
[1642067850793,0.00397897,3364.6,3364.4,3.56962328]
[1642067850988,1.52731066,3365.1,3364.6,1.48564]
[1642067851188,1.52731066,3365.1,3364.7,0.426]
[1642067851394,3.13951478,3365.2,3364.7,0.726]
[1642067851395,0.00227369,3365.0,3364.7,0.726]
[1642067851690,0.00170527,3364.9,3364.7,0.726]
[1642067852186,0.00113684,3364.8,3364.7,1.46882]
[1642067852386,0.00113684,3364.8,3364.7,0.726]
[1642067852588,0.00113684,3364.8,3364.7,1.026]
[1642067852992,0.1188,3364.7,3364.6,2.97128]
[1642067853188,0.1188,3364.7,3364.3,0.74312]
[1642067853387,1.36031326,3364.6,3364.3,0.74312]
[1642067853590,0.1188,3364.5,3364.4,0.74423685]
[1642067853843,1.86003812,3364.6,3364.4,0.74423685]
[1642067854044,0.1188,3364.5,3364.4,0.74423685]
[1642067854336,0.1188,3364.5,3364.4,0.00113685]
[1642067854537,0.10256161,3364.5,3364.4,0.00113685]
[1642067855337,0.54662143,3364.6,3364.4,0.00113685]
[1642067855737,0.49858801,3364.4,3364.3,2.22911]
[1642067855939,0.49858801,3364.4,3364.3,2.52911]
[1642067856144,0.54662143,3364.6,3364.3,2.52911]
[1642067856338,0.54662143,3364.6,3364.4,0.3]
[1642067857141,0.54662143,3364.6,3364.4,1.04296]
[1642067857592,0.1188,3364.5,3364.4,0.54318298]
[1642067857796,0.1188,3364.5,3364.2,2.97221]
[1642067857993,0.1188,3364.5,3364.1,0.74319]
[1642067857994,1.04316729,3364.4,3364.1,0.74319]
[1642067858193,0.1188,3364.3,3363.9,0.86201]
[1642067858393,0.1188,3364.3,3364.2,0.00113685]
[1642067858798,0.49863718,3364.2,3363.8,1.48631]
[1642067858997,0.1189,3364.1,3363.9,0.00170527]
[1642067859493,0.1189,3364.4,3363.9,0.00170527]
[1642067859893,0.12003684,3364.4,3363.9,0.00170527]
[1642067860493,0.12003684,3364.4,3364.1,0.7432]
[1642067860694,0.12003684,3364.4,3364.1,0.3]
[1642067861094,0.12003684,3364.4,3363.9,0.30170527]
[1642067861353,0.49985133,3364.1,3363.9,0.30170527]
[1642067861543,0.49985133,3364.1,3364.0,0.00113684]
[1642067861738,0.8271,3364.1,3364.0,0.00113684]
[1642067861937,5.75,3364.0,3362.8,1.21175144]
[1642067862139,5.75,3364.0,3363.1,0.00511582]
[1642067862140,1.0,3363.9,3363.1,0.00511582]
[1642067862338,2.12280688,3363.8,3363.1,0.00511582]
[1642067862539,0.743589,3363.1,3362.7,0.00738951]
[1642067862738,1.28001907,3362.9,3362.4,0.00909478]
[1642067862939,0.1189,3362.8,3362.5,0.7435]
[1642067863339,0.1189,3362.8,3362.6,0.00795793]
[1642067863740,0.1189,3362.8,3362.6,1.49493793]
[1642067863945,0.1189,3362.8,3362.6,1.79493793]
[1642067864141,0.1189,3362.8,3362.7,0.00738951]
[1642067864340,1.7798704,3362.9,3362.7,0.00738951]
[1642067865086,1.96563904,3362.8,3362.7,0.00738951]
[1642067865282,6.09135775,3362.8,3362.7,0.00738951]
[1642067865485,7.09135775,3362.8,3362.7,0.00738951]
[1642067865681,0.49246182,3362.7,3362.6,0.3]
[1642067865882,0.49246182,3362.7,3362.3,0.3]
[1642067865883,2.49309876,3362.7,3362.3,0.3]
[1642067866082,3.00063694,3362.7,3362.2,1.78712]
[1642067866282,3.00063694,3362.7,3362.4,0.00170527]
[1642067866684,0.7436264,3362.6,3362.4,0.00170527]
[1642067866884,1.30335401,3362.6,3362.4,0.00170527]
[1642067867083,3.04700401,3362.6,3362.4,0.00170527]
[1642067867283,2.30337761,3362.6,3362.4,0.00170527]
[1642067867483,0.49989831,3362.5,3362.4,0.00170527]
[1642067867683,0.49989831,3362.5,3362.4,0.30170527]
[1642067868086,1.26026286,3362.7,3362.4,0.30170527]
[1642067868286,1.37916286,3362.7,3362.4,0.30170527]
[1642067868485,1.37916286,3362.7,3362.5,0.00113685]
[1642067868935,0.1189,3362.7,3362.5,0.00113685]
[1642067869139,0.49859543,3362.5,3362.4,0.3]
[1642067869735,0.74474604,3362.7,3362.4,0.3]
[1642067870336,0.00113684,3362.7,3362.4,0.3]
[1642067870539,0.00113684,3362.7,3362.4,1.0435]
[1642067870939,0.49978527,3362.5,3362.4,1.0435]
[1642067871139,0.49978527,3362.5,3362.4,0.3]
[1642067872141,0.49978527,3362.5,3362.3,0.3]
[1642067872341,1.24343527,3362.5,3362.2,1.78712]
[1642067872788,1.24343527,3362.5,3362.3,0.00113684]
[1642067873186,0.7436337,3362.4,3362.3,0.00113684]
[1642067873388,1.24343527,3362.5,3362.3,0.00113684]
[1642067873389,0.49978527,3362.5,3362.3,0.00113684]
[1642067874585,1.24340527,3362.5,3362.3,0.00113684]
[1642067875186,2.24340527,3362.5,3362.3,0.00113684]
[1642067875587,1.24340527,3362.5,3362.3,0.00113684]
[1642067876442,1.98702377,3362.5,3362.3,0.00113684]
[1642067876642,2.98702377,3362.5,3362.3,0.00113684]
[1642067876841,1.96158791,3362.4,3362.3,0.00113684]
[1642067877044,4.43873845,3362.4,3362.3,0.00113684]
[1642067877241,2.981203,3362.4,3362.3,0.00113684]
[1642067877441,0.49978527,3362.3,3362.2,0.00170527]
[1642067877643,3.48844973,3362.3,3362.2,0.00170527]
[1642067878041,3.98866446,3362.3,3362.2,0.00170527]
[1642067878240,3.34808,3362.2,3362.1,0.0025092]
[1642067878441,7.09213658,3362.2,3362.1,0.0025092]
[1642067878841,3.74405658,3362.2,3362.1,0.0025092]
[1642067879441,5.16961917,3362.2,3362.1,0.0025092]
[1642067880090,5.66948412,3362.2,3362.1,0.0025092]
[1642067882590,3.66915754,3362.2,3362.1,0.0025092]
[1642067882991,2.92542754,3362.2,3362.1,0.0025092]
[1642067883190,1.92542754,3362.2,3362.1,0.0025092]
[1642067883392,2.92542754,3362.2,3362.1,0.0025092]
[1642067884038,1.92542754,3362.2,3362.1,0.0042445]
[1642067884233,2.92542754,3362.2,3362.1,0.0042445]
[1642067884434,1.92542754,3362.2,3362.1,0.0042445]
[1642067884635,2.92542754,3362.2,3362.1,0.0042445]
[1642067884838,1.92542754,3362.2,3362.1,0.0042445]
[1642067885035,2.92542754,3362.2,3362.1,0.0042445]
[1642067885238,1.92542754,3362.2,3362.1,0.0042445]
[1642067885438,2.92542754,3362.2,3362.1,0.0042445]
[1642067885638,1.92542754,3362.2,3362.1,0.0042445]
[1642067885840,2.92542754,3362.2,3362.1,0.0042445]
[1642067886437,1.92542754,3362.2,3362.1,0.0042445]
[1642067886638,2.92542754,3362.2,3362.1,0.0042445]
[1642067887038,2.42556259,3362.2,3362.1,0.0042445]
[1642067887341,0.49562045,3362.1,3362.0,0.74369]
[1642067887585,1.49562045,3362.1,3362.0,1.04369]
[1642067887782,1.49562045,3362.1,3362.0,1.04482684]
[1642067887982,1.0,3362.1,3362.0,1.04482684]
[1642067888182,2.42556259,3362.2,3362.0,1.04482684]
[1642067889183,2.42556259,3362.2,3362.0,0.54504109]
[1642067889385,2.42556259,3362.2,3362.0,0.24504109]
[1642067889784,0.25479527,3362.0,3361.8,2.23098]
[1642067890386,0.74368,3362.1,3361.8,2.23098]
[1642067890789,0.74368,3362.1,3361.9,0.3]
[1642067891648,0.19995311,3361.9,3361.8,2.23098]
[1642067891847,0.19995311,3361.9,3361.8,1.48731]
[1642067892048,0.19995311,3361.9,3361.8,1.48844685]
[1642067892248,2.4873601,3362.1,3361.8,1.48844685]
[1642067893550,2.4873601,3362.1,3361.8,0.98858746]
[1642067894151,2.4873601,3362.1,3361.8,0.48874366]
[1642067894352,1.4873601,3362.1,3361.8,0.48874366]
[1642067894552,1.4873601,3362.1,3361.8,0.41168441]
[1642067894754,1.4873601,3362.1,3361.8,1.89899441]
[1642067895195,1.4873601,3362.1,3361.8,1.47620986]
[1642067895394,1.4873601,3362.1,3361.9,0.74365]
[1642067895592,1.42556259,3362.2,3361.9,0.66659075]
[1642067895994,2.42556259,3362.2,3361.9,0.66659075]
[1642067896193,2.72784908,3362.2,3361.9,0.66659075]
[1642067896394,1.72784908,3362.2,3361.9,0.66659075]
[1642067896597,1.42556259,3362.2,3361.9,0.66659075]
[1642067896994,0.49982616,3362.1,3361.9,0.66659075]
[1642067897395,0.49982616,3362.1,3362.0,0.74363]
[1642067900744,1.49982616,3362.1,3362.0,0.74363]
[1642067901043,1.0,3362.1,3362.0,0.74363]
[1642067901250,1.0,3362.1,3362.0,0.24380384]
[1642067901444,0.47662919,3362.1,3362.0,0.24380384]
[1642067901644,1.47662919,3362.1,3362.0,0.24380384]
[1642067901845,0.25608458,3362.0,3361.9,0.66659075]
[1642067902245,2.96404829,3362.1,3361.9,0.66659075]
[1642067903606,0.47662919,3362.0,3361.9,0.66659075]
[1642067904007,0.47662919,3362.0,3361.8,0.74485685]
[1642067904307,0.49978019,3361.9,3361.8,0.74485685]
[1642067904508,1.24348019,3361.9,3361.8,0.00113685]
[1642067904705,0.7437,3361.9,3361.8,0.00113685]
[1642067904909,2.22032269,3362.0,3361.8,0.00113685]
[1642067905106,0.49864334,3361.8,3361.7,0.74369]
[1642067905509,0.47662919,3361.9,3361.7,0.74369]
[1642067906246,0.47662919,3361.8,3361.7,0.74369]
[1642067906943,0.49983355,3361.7,3361.6,2.23112]
[1642067907141,0.49983355,3361.7,3361.6,1.48744]
[1642067907340,0.7437282,3361.8,3361.6,1.48857685]
[1642067907743,0.7437282,3361.8,3361.6,0.9887433]
[1642067907942,0.47662919,3361.7,3361.6,0.9887433]
[1642067908343,0.47662919,3361.7,3361.6,0.48885489]
[1642067908744,0.01103353,3361.6,3361.5,1.48746]
[1642067909347,1.18984053,3361.7,3361.5,1.48746]
[1642067909988,1.18984053,3361.7,3361.5,1.60636]
[1642067910591,1.18984053,3361.7,3361.5,1.1064475]
[1642067910989,1.18984053,3361.7,3361.5,0.9875475]
[1642067911190,1.18984053,3361.7,3361.5,0.98040623]
[1642067911592,1.18984053,3361.7,3361.5,0.48765908]
[1642067912196,1.18984053,3361.7,3361.5,0.48051782]
[1642067912596,0.01222934,3361.5,3361.4,1.60633]
[1642067912794,0.01222934,3361.5,3361.4,0.86262]
[1642067913093,1.18984053,3361.7,3361.4,0.12003684]
[1642067913298,1.18984053,3361.7,3361.4,0.86374684]
[1642067913299,0.55192479,3361.6,3361.4,0.86374684]
[1642067914741,0.55192479,3361.6,3361.4,1.60745684]
[1642067915141,0.4999181,3361.5,3361.4,1.60745684]
[1642067915343,0.4999181,3361.5,3361.4,0.00113684]
[1642067916340,1.18984053,3361.7,3361.4,0.00113684]
[1642067916541,1.68975863,3361.7,3361.4,0.00113684]
[1642067917345,1.68975863,3361.7,3361.4,0.74482684]
[1642067917591,1.18984053,3361.7,3361.5,1.48742]
[1642067917789,0.54003991,3361.6,3361.5,1.48742]
[1642067918791,0.54003991,3361.6,3361.5,0.9875019]
[1642067919295,0.54003991,3361.6,3361.5,0.78873675]
[1642067919891,0.54003991,3361.6,3361.5,0.28884833]
[1642067920495,0.21104009,3361.5,3361.4,0.74482684]
[1642067920694,0.21104009,3361.5,3361.4,0.00113684]
[1642067920893,0.54003991,3361.6,3361.4,0.00113684]
[1642067921095,0.54003991,3361.6,3361.5,1.99745825]
[1642067921939,0.54003991,3361.6,3361.4,1.99859509]
[1642067923142,0.54003991,3361.6,3361.4,2.86121509]
[1642067923950,0.54003991,3361.6,3361.5,1.99745825]
[1642067924142,0.54003991,3361.6,3361.5,2.11635825]
[1642067925291,0.54003991,3361.6,3361.5,1.99745825]
[1642067929541,1.0400036,3361.6,3361.5,1.99745825]
[1642067930542,0.54003991,3361.6,3361.5,1.99745825]
[1642067934496,0.18903991,3361.6,3361.5,1.99745825]
[1642067936350,0.18903991,3361.6,3361.5,1.49749456]
[1642067936754,0.18903991,3361.6,3361.5,0.99761358]
[1642067937348,0.18903991,3361.6,3361.5,0.62062]
[1642067937949,0.18903991,3361.6,3361.5,0.49773259]
[1642067938448,0.18903991,3361.6,3361.5,0.12073902]
[1642067939048,0.18903991,3361.6,3361.4,1.04485684]
[1642067939049,0.00214839,3361.5,3361.4,1.04485684]
[1642067939450,0.18903991,3361.6,3361.4,1.04485684]
[1642067940702,0.18903991,3361.6,3361.4,1.16375684]
[1642067942904,0.18903991,3361.6,3361.4,1.16262]
[1642067948097,0.18903991,3361.6,3361.4,1.04372]
[1642067950300,0.49994653,3362.1,3361.4,1.04372]
[1642067950597,0.49994653,3362.1,3361.7,0.74361]
[1642067950598,1.11058944,3361.9,3361.7,0.74361]
[1642067950799,1.11058944,3361.9,3361.8,0.3]
[1642067952550,5.12029,3362.4,3361.8,0.3]
[1642067952747,5.12029,3362.4,3361.9,0.7436]
[1642067952948,0.00284212,3362.1,3361.9,0.73331651]
[1642067953349,0.0022737,3362.0,3361.9,0.73331651]
[1642067953947,0.0022737,3362.0,3361.9,0.23336998]
[1642067954348,0.266511,3361.9,3361.8,2.5308]
[1642067954549,0.266511,3361.9,3361.8,1.7872]
[1642067954746,0.26821627,3361.9,3361.8,1.7872]
[1642067954993,0.00170527,3361.9,3361.8,1.7872]
[1642067956197,0.5014663,3361.9,3361.8,1.7872]
[1642067959845,1.23851214,3361.9,3361.8,3.59333034]
[1642067971500,3.17318471,3361.9,3361.8,3.59333034]
[1642067971697,1.23851214,3361.9,3361.8,3.59333034]
[1642067974548,1.35741214,3361.9,3361.8,3.59333034]
[1642067977597,1.23851214,3361.9,3361.8,3.59333034]
[1642067984644,1.23680687,3361.9,3361.8,3.59333034]
[1642067988202,0.73704584,3361.9,3361.8,3.59333034]
[1642067989551,0.73704584,3361.9,3361.8,3.39356931]
[1642067989950,0.73704584,3361.9,3361.8,3.09336997]
[1642067990550,0.73704584,3361.9,3361.8,2.89373295]
[1642067991151,0.73704584,3361.9,3361.8,2.59353361]
[1642067991651,0.73704584,3361.9,3361.8,2.39389658]
[1642067992052,0.73704584,3361.9,3361.8,2.09369724]
[1642067992496,0.73704584,3361.9,3361.8,1.80613034]
[1642067993097,0.73704584,3361.9,3361.8,2.993131]
[1642067993699,0.73704584,3361.9,3361.8,2.79349398]
[1642067994100,0.73704584,3361.9,3361.8,2.49329464]
[1642067994298,0.73704584,3361.9,3361.8,2.79329464]
[1642067994498,0.73704584,3361.9,3361.8,1.8113373]
[1642067995105,0.73704584,3361.9,3361.8,1.51113797]
[1642067995500,0.73704584,3361.9,3361.8,1.46531963]
[1642067996101,0.73704584,3361.9,3361.8,1.3113016]
[1642067999559,0.73704584,3361.9,3361.8,4.0373016]
[1642067999861,1.52731066,3362.3,3361.9,5.4]
[1642068000110,1.52731066,3362.3,3361.8,4.0373016]
[1642068000111,3.57311446,3362.6,3362.1,0.01222201]
[1642068000306,3.57311446,3362.6,3362.2,2.3]
[1642068000508,3.57311446,3362.6,3362.5,1.04326]
[1642068000707,0.0025092,3362.6,3362.5,1.58816]
[1642068001107,0.0025092,3362.6,3362.5,3.58816]
[1642068001509,0.0025092,3362.6,3362.5,1.58816]
[1642068001916,0.0025092,3362.6,3362.5,3.58816]
[1642068002108,0.0025092,3362.6,3362.5,4.58816]
[1642068003207,2.28333949,3363.8,3362.5,4.58816]
[1642068003208,2.28333949,3363.8,3363.0,0.7432824]
[1642068003408,0.49983646,3363.8,3363.1,0.5449]
[1642068003612,1.34656592,3363.5,3363.4,0.7433]
[1642068003846,1.34656592,3363.5,3363.4,1.3433]
[1642068004245,1.34656592,3363.5,3363.4,1.7866]
[1642068005251,0.49983646,3363.8,3363.4,1.7866]
[1642068005448,0.49983646,3363.8,3363.5,1.48658]
[1642068005850,0.49983646,3363.8,3363.6,1.78652]
[1642068006253,0.1189,3364.0,3363.6,0.3]
[1642068006452,0.74338,3363.8,3363.5,1.0433]
[1642068006651,0.49983646,3363.6,3363.5,1.0433]
[1642068007054,0.50779439,3363.6,3363.5,1.0433]
[1642068007699,0.00795793,3363.6,3363.5,0.7433]
[1642068007899,0.12685793,3363.6,3363.5,0.7433]
[1642068008101,0.00795793,3363.6,3363.5,0.24346354]
[1642068008301,0.12685793,3363.6,3363.5,0.24346354]
[1642068008500,0.25645468,3363.5,3363.4,2.23003]
[1642068008901,0.26384419,3363.5,3363.4,2.23003]
[1642068009099,0.00738951,3363.5,3363.4,2.23003]
[1642068009303,0.00738951,3363.5,3363.4,2.45563605]
[1642068009501,0.00738951,3363.5,3363.4,2.6812421]
[1642068010100,0.00738951,3363.5,3363.4,2.9812421]
[1642068010400,0.00738951,3363.5,3363.4,2.46715326]
[1642068011002,0.00738951,3363.5,3363.4,2.40916156]
[1642068011271,0.00738951,3363.5,3363.4,1.66582156]
[1642068011466,4.85738951,3363.5,3363.4,1.22389505]
[1642068011665,4.85738951,3363.5,3363.4,0.7512121]
[1642068011666,5.97628951,3363.5,3363.4,0.7512121]
[1642068011866,5.97628951,3363.5,3363.4,0.69322039]
[1642068012064,1.12628951,3363.5,3363.4,0.4512121]
[1642068012268,0.12628951,3363.5,3363.4,0.4512121]
[1642068012565,3.17628951,3363.5,3363.4,0.00927902]
[1642068012964,0.04871355,3363.4,3362.5,1.4869]
[1642068013166,0.16761355,3363.4,3363.2,0.74346]
[1642068013364,0.00625266,3363.3,3363.1,1.48681]
[1642068013565,0.1189,3363.2,3362.8,0.74345]
[1642068013768,0.12458424,3363.2,3362.8,0.74345]
[1642068013968,0.00511581,3363.1,3362.8,0.74345]
[1642068014366,0.00454739,3363.0,3362.8,0.74345]
[1642068014568,0.00454739,3363.0,3362.8,2.2304]
[1642068014768,0.00397897,3362.9,3362.8,2.2304]
[1642068016400,0.00397897,3362.9,3362.8,1.48695]
[1642068017802,0.00397897,3362.9,3362.8,1.90585]
[1642068018004,0.00397897,3362.9,3362.8,1.60585]
[1642068019062,0.00397897,3362.9,3362.8,1.48695]
[1642068019765,0.12287897,3362.9,3362.8,1.48695]
[1642068020263,0.51624217,3362.9,3362.7,0.86237]
[1642068020463,2.56501596,3362.8,3362.7,0.86237]
[1642068020662,3.5684265,3362.8,3362.7,0.86237]
[1642068020862,3.05447134,3362.8,3362.7,0.86237]
[1642068021064,0.12231054,3362.8,3362.7,0.86237]
[1642068021263,1.12231054,3362.8,3362.7,0.86237]
[1642068021462,1.51567374,3362.8,3362.7,0.36250404]
[1642068021664,2.41308593,3362.8,3362.7,0.36250404]
[1642068021864,0.13722082,3362.7,3362.6,0.3]
[1642068022064,2.12351324,3362.7,3362.6,0.3]
[1642068022264,3.12635536,3362.7,3362.6,0.3]
[1642068022501,2.12635536,3362.7,3362.6,0.3]
[1642068022704,3.12635536,3362.7,3362.6,0.3]
[1642068022900,2.98913454,3362.7,3362.6,0.3]
[1642068023700,3.38249774,3362.7,3362.6,0.3]
[1642068023903,3.38249774,3362.7,3362.6,0.2]
[1642068024700,3.38249774,3362.7,3362.4,0.74364]
[1642068024701,0.29988352,3362.6,3362.4,0.74364]
[1642068024902,2.04354352,3362.6,3362.4,0.74364]
[1642068025105,0.00170527,3362.5,3362.4,0.74364]
[1642068025702,0.39506847,3362.5,3362.4,0.74364]
[1642068026350,0.39506847,3362.5,3362.4,0.24383086]
[1642068026952,0.39506847,3362.5,3362.4,0.00998928]
[1642068027453,0.2559832,3362.4,3362.0,1.60623]
[1642068027658,0.2559832,3362.4,3362.0,2.23095]
[1642068027852,0.00113685,3362.4,3362.1,0.1189]
[1642068029053,0.00113685,3362.4,3362.0,2.23095]
[1642068029252,0.00113685,3362.4,3362.2,2.15126933]
[1642068029452,0.499939,3362.3,3362.2,2.15126933]
[1642068029654,0.499939,3362.3,3362.2,0.74364]
[1642068030122,1.50180283,3362.4,3362.2,0.74364]
[1642068030513,0.39156598,3362.3,3362.2,0.243701]
[1642068031611,0.25612793,3362.2,3362.0,1.48733]
[1642068032015,1.13523598,3362.3,3362.0,1.48733]
[1642068032612,0.74367,3362.3,3362.0,1.48733]
[1642068033213,1.90425531,3362.2,3362.0,1.48733]
[1642068033412,0.7654,3362.2,3362.0,0.98753547]
[1642068033613,1.1568172,3362.2,3362.0,0.98753547]
[1642068033854,1.1568172,3362.2,3362.0,0.92951961]
[1642068034453,0.3914172,3362.1,3362.0,0.48770654]
[1642068034852,0.3914172,3362.1,3362.0,0.43082752]
[1642068035254,0.01098555,3362.0,3361.9,1.48734]
[1642068035856,1.1351272,3362.1,3361.9,1.48734]
[1642068036055,0.74371,3362.1,3361.9,1.48734]
[1642068036456,0.74367,3362.3,3361.9,1.48734]
[1642068036854,0.00113684,3362.2,3361.9,1.48734]